fUSD/lending_fUSD_20240708
["ID","MTS","AMOUNT","RATE_DAILY","PERIOD"]
[331519698,1720446591126,-500.0,0.00049589,120]
[331519699,1720446591246,-500.0,0.00049589,120]
[331519700,1720446591358,-500.0,0.00049589,120]
[331519701,1720446591471,-500.0,0.00049589,120]
[331519702,1720446591589,-500.0,0.00049589,120]
[331519703,1720446591701,-618.35,0.00049589,120]
[331519704,1720446591812,-500.0,0.00049589,120]
[331519705,1720446591926,-500.0,0.00049589,120]
[331519706,1720446592036,-500.0,0.00049589,120]
[331519707,1720446592148,-500.0,0.00049589,120]
[331519708,1720446592259,-506.52,0.00049589,120]
[331519709,1720446592373,-515.77973616,0.00049589,120]
[331519710,1720446592487,-768.09,0.00049589,120]
[331519711,1720446592605,-279.53184928,0.00049589,120]
[331519712,1720446592716,-500.0,0.00049589,120]
[331519713,1720446592828,-500.0,0.00049589,120]
[331519714,1720446592943,-610.82,0.00049589,120]
[331519715,1720446593060,-500.0,0.00049589,120]
[331519716,1720446593176,-500.0,0.00049589,120]
[331519717,1720446593290,-621.72,0.00049589,120]
[331519718,1720446593414,-500.0,0.00049589,120]
[331519719,1720446593546,-500.0,0.00049589,120]
[331519720,1720446593676,-500.0,0.00049589,120]
[331519721,1720446593803,-500.0,0.00049589,120]
[331519722,1720446593918,-1216.49,0.00049589,120]
[331519723,1720446594036,-3725.93,0.00049589,120]
[331519724,1720446594164,-545.33861297,0.00049589,120]
[331519725,1720446594291,-935.49,0.00049589,120]
[331519726,1720446594417,-675.31,0.00049589,120]
[331519727,1720446594547,-2876.66,0.00049589,120]
[331519728,1720446594836,-397.21880595,0.00049589,120]
[331519729,1720446594953,-586.12,0.00049589,120]
[331519730,1720446595068,-500.0,0.00049589,120]
[331519731,1720446595186,-1521.41,0.00049589,120]
[331519732,1720446595302,-500.0,0.00049589,120]
[331519733,1720446595430,-500.0,0.00049589,120]
[331519734,1720446595556,-8657.52,0.00049589,120]
[331519735,1720446595680,-549.041983,0.0004968,39]
[331519736,1720446595805,-500.0,0.00049863,120]
[331519737,1720446595922,-250.0,0.00049863,120]
[331519738,1720446596041,-500.0,0.00049863,120]
[331519739,1720446596168,-500.0,0.00049863,120]
[331519740,1720446596293,-704.82,0.00049863,120]
[331519741,1720446596409,-500.0,0.00049863,120]
[331519742,1720446596523,-500.0,0.00049863,120]
[331519743,1720446596643,-500.0,0.00049863,120]
[331519744,1720446596773,-500.0,0.00049863,120]
[331519745,1720446596892,-1163.26,0.00049863,120]
[331519746,1720446597007,-578.1,0.00049863,120]
[331519747,1720446597121,-500.0,0.00049863,120]
[331519748,1720446597248,-500.0,0.00049863,120]
[331519749,1720446597371,-500.0,0.00049863,120]
[331519750,1720446597489,-966.97,0.00049863,120]
[331519751,1720446597614,-500.0,0.00049863,120]
[331519752,1720446597729,-500.0,0.00049863,120]
[331519753,1720446597844,-500.0,0.00049863,120]
[331519754,1720446597967,-1435.54,0.00049863,120]
[331519755,1720446598084,-982.43,0.00049863,120]
[331519756,1720446598196,-447.02426636,0.00049863,120]
[331519757,1720446598312,-500.0,0.00049863,120]
[331519758,1720446598437,-500.0,0.00049863,120]
[331519759,1720446598559,-500.0,0.00049863,120]
[331519760,1720446598682,-500.0,0.00049863,120]
[331519761,1720446598802,-500.0,0.00049863,120]
[331519762,1720446598918,-2601.42,0.00049863,120]
[331519763,1720446599036,-500.0,0.00049863,120]
[331519764,1720446599161,-500.0,0.00049863,120]
[331519765,1720446599291,-500.0,0.00049863,120]
[331519766,1720446599414,-248.06,0.00049863,120]
[331519767,1720446599544,-500.0,0.00049863,120]
[331519768,1720446599672,-500.0,0.00049863,120]
[331519769,1720446599791,-500.0,0.00049863,120]
[331519770,1720446599910,-576.67,0.00049863,120]
[331519771,1720446600032,-656.98,0.00049863,120]
[331519772,1720446600159,-875.42,0.00049863,120]
[331519773,1720446600301,-500.0,0.00049863,120]
[331519774,1720446600421,-500.0,0.00049863,120]
[331519775,1720446600544,-500.0,0.00049863,120]
[331519776,1720446600665,-500.0,0.00049863,120]
[331519777,1720446600779,-500.0,0.00049863,120]
[331519778,1720446600892,-453.45,0.00049863,120]
[331519779,1720446601006,-500.0,0.00049863,120]
[331519780,1720446601116,-500.0,0.00049863,120]
[331519781,1720446601232,-500.0,0.00049863,120]
[331519782,1720446601350,-500.0,0.00049863,120]
[331519783,1720446601467,-500.0,0.00049863,120]
[331519784,1720446601580,-500.0,0.00049863,120]
[331519785,1720446601692,-601.48,0.00049863,120]
[331519786,1720446601811,-927.61,0.00049863,120]
[331519787,1720446601932,-504.02739057,0.00049863,120]
[331519788,1720446602052,-500.0,0.00049863,120]
[331519789,1720446602172,-497.62129512,0.00049863,120]
[331519790,1720446602290,-500.0,0.00049863,120]
[331519791,1720446602412,-663.11,0.00049863,120]
[331519792,1720446602535,-500.0,0.00049863,120]
[331519793,1720446602661,-500.0,0.00049863,120]
[331519794,1720446602783,-500.0,0.00049863,120]
[331519795,1720446602896,-995.13,0.00049863,120]
[331519796,1720446603013,-500.0,0.00049863,120]
[331519797,1720446603130,-500.0,0.00049863,120]
[331519798,1720446603244,-503.89,0.00049863,120]
[331519799,1720446603364,-507.66932074,0.00049863,120]
[331519800,1720446603480,-500.0,0.00049863,120]
[331519801,1720446603600,-500.0,0.00049863,120]
[331519802,1720446603720,-500.0,0.00049863,120]
[331519803,1720446603839,-500.0,0.00049863,120]
[331519804,1720446603955,-2052.66,0.00049863,120]
[331519805,1720446604067,-500.0,0.00049863,120]
[331519806,1720446604190,-557.0,0.00049863,120]
[331519807,1720446604308,-500.0,0.00049863,120]
[331519808,1720446604424,-219.79465613,0.00049863,120]
[331519809,1720446604540,-500.0,0.00049863,120]
[331519810,1720446604657,-500.0,0.00049863,120]
[331519811,1720446604766,-500.0,0.00049863,120]
[331519812,1720446604871,-500.0,0.00049863,120]
[331519813,1720446604979,-793.83,0.00049863,120]
[331519814,1720446605086,-500.0,0.00049863,120]
[331519815,1720446605197,-500.0,0.00049863,120]
[331519816,1720446605305,-500.0,0.00049863,120]
[331519817,1720446605418,-500.0,0.00049863,120]
[331519818,1720446605531,-500.0,0.00049863,120]
[331519819,1720446605647,-500.0,0.00049863,120]
[331519820,1720446605757,-500.0,0.00049863,120]
[331519821,1720446605868,-500.0,0.00049863,120]
[331519822,1720446605974,-500.0,0.00049863,120]
[331519823,1720446606080,-415.03,0.00049863,120]
[331519824,1720446606189,-500.0,0.00049863,120]
[331519825,1720446606295,-680.97,0.00049863,120]
[331519826,1720446606402,-500.0,0.00049863,120]
[331519827,1720446606506,-500.0,0.00049863,120]
[331519828,1720446606616,-500.0,0.00049863,120]
[331519829,1720446606722,-500.0,0.00049863,120]
[331519830,1720446606825,-500.0,0.00049863,120]
[331519831,1720446606932,-500.0,0.00049863,120]
[331519832,1720446607174,-500.0,0.00049863,120]
[331519833,1720446607283,-500.0,0.00049863,120]
[331519834,1720446607393,-500.0,0.00049863,120]
[331519835,1720446607497,-500.0,0.00049863,120]
[331519836,1720446607605,-576.64,0.00049863,120]
[331519837,1720446607716,-500.0,0.00049863,120]
[331519838,1720446607822,-500.0,0.00049863,120]
[331519839,1720446607926,-500.0,0.00049863,120]
[331519840,1720446608034,-500.0,0.00049863,120]
[331519841,1720446608145,-500.0,0.00049863,120]
[331519842,1720446608250,-844.3,0.00049863,120]
[331519843,1720446608356,-500.0,0.00049863,120]
[331519844,1720446608472,-500.0,0.00049863,120]
[331519845,1720446608589,-626.46,0.00049863,120]
[331519846,1720446608703,-500.0,0.00049863,120]
[331519847,1720446608813,-500.0,0.00049863,120]
[331519848,1720446608917,-858.72,0.00049863,120]
[331519849,1720446609029,-606.39,0.00049863,120]
[331519850,1720446609148,-500.0,0.00049863,120]
[331519851,1720446609267,-500.0,0.00049863,120]
[331519852,1720446609388,-608.68,0.00049863,120]
[331519853,1720446609507,-586.51,0.00049863,120]
[331519854,1720446609629,-500.0,0.00049863,120]
[331519855,1720446609743,-500.0,0.00049863,120]
[331519856,1720446609854,-500.0,0.00049863,120]
[331519857,1720446609966,-500.0,0.00049863,120]
[331519858,1720446610073,-500.0,0.00049863,120]
[331519859,1720446610183,-500.0,0.00049863,120]
[331519860,1720446610287,-500.0,0.00049863,120]
[331519861,1720446610392,-505.52479135,0.00049863,120]
[331519862,1720446610496,-500.0,0.00049863,120]
[331519863,1720446610608,-500.0,0.00049863,120]
[331519864,1720446610724,-500.0,0.00049863,120]
[331519865,1720446610835,-500.0,0.00049863,120]
[331519866,1720446610943,-500.0,0.00049863,120]
[331519867,1720446611051,-500.0,0.00049863,120]
[331519868,1720446611154,-698.26,0.00049863,120]
[331519869,1720446611257,-500.0,0.00049863,120]
[331519870,1720446611359,-500.0,0.00049863,120]
[331519871,1720446611466,-500.0,0.00049863,120]
[331519872,1720446611569,-580.79,0.00049863,120]
[331519873,1720446611670,-500.0,0.00049863,120]
[331519874,1720446611772,-549.23,0.00049863,120]
[331519875,1720446611875,-1752.42,0.00049863,120]
[331519876,1720446611977,-500.0,0.00049863,120]
[331519877,1720446612078,-500.0,0.00049863,120]
[331519878,1720446612186,-500.0,0.00049863,120]
[331519879,1720446612292,-500.0,0.00049863,120]
[331519880,1720446612396,-492.66,0.00049863,120]
[331519881,1720446612501,-500.0,0.00049863,120]
[331519882,1720446612605,-1395.37,0.00049863,120]
[331519883,1720446612712,-500.0,0.00049863,120]
[331519884,1720446612816,-500.0,0.00049863,120]
[331519885,1720446612918,-500.0,0.00049863,120]
[331519886,1720446613020,-428.1,0.00049863,120]
[331519887,1720446613121,-500.0,0.00049863,120]
[331519888,1720446613226,-500.0,0.00049863,120]
[331519889,1720446613328,-789.75,0.00049863,120]
[331519890,1720446613442,-500.0,0.00049863,120]
[331519891,1720446613558,-500.0,0.00049863,120]
[331519892,1720446613673,-430.9943276,0.00049863,120]
[331519893,1720446613782,-500.0,0.00049863,120]
[331519894,1720446613891,-500.0,0.00049863,120]
[331519895,1720446614001,-500.0,0.00049863,120]
[331519896,1720446614119,-500.0,0.00049863,120]
[331519897,1720446614238,-500.0,0.00049863,120]
[331519898,1720446614357,-618.35,0.00049863,120]
[331519899,1720446614483,-500.0,0.00049863,120]
[331519900,1720446614605,-500.0,0.00049863,120]
[331519901,1720446614720,-500.0,0.00049863,120]
[331519902,1720446614827,-506.52,0.00049863,120]
[331519903,1720446614935,-768.09,0.00049863,120]
[331519904,1720446615049,-500.0,0.00049863,120]
[331519905,1720446615160,-361.53928332,0.00049863,120]
[331519906,1720446615272,-610.82,0.00049863,120]
[331519907,1720446615390,-500.0,0.00049863,120]
[331519908,1720446615505,-509.9,0.00049863,120]
[331519909,1720446615619,-621.72,0.00049863,120]
[331519910,1720446615730,-500.0,0.00049863,120]
[331519911,1720446615840,-500.0,0.00049863,120]
[331519912,1720446615951,-500.0,0.00049863,120]
[331519913,1720446616060,-500.0,0.00049863,120]
[331519914,1720446616169,-1216.49,0.00049863,120]
[331519915,1720446616280,-3725.93,0.00049863,120]
[331519916,1720446616393,-935.49,0.00049863,120]
[331519917,1720446616505,-675.31,0.00049863,120]
[331519918,1720446616617,-2876.66,0.00049863,120]
[331519919,1720446616725,-586.12,0.00049863,120]
[331519920,1720446616834,-500.0,0.00049863,120]
[331519921,1720446616946,-1521.41,0.00049863,120]
[331519922,1720446617058,-500.0,0.00049863,120]
[331519923,1720446617165,-500.0,0.00049863,120]
[331519924,1720446617272,-8657.52,0.00049863,120]
[331519925,1720446617381,-100000.0,0.0005,40]
[331519926,1720446617490,-100000.0,0.0005,50]
[331519927,1720446617596,-200.0,0.0005,120]
[331519928,1720446617700,-1000.0,0.0005,120]
[331519929,1720446617806,-200.0,0.0005,120]
[331519930,1720446617912,-9731.0,0.0005,30]
[331519931,1720446618022,-156.43409628,0.00050023,60]
[331519932,1720446618133,-500.0,0.00050136,120]
[331519933,1720446618246,-250.0,0.00050136,120]
[331519934,1720446618359,-365.02,0.00050136,120]
[331519935,1720446618479,-500.0,0.00050136,120]
[331519936,1720446618740,-704.82,0.00050136,120]
[331519937,1720446618856,-151.0,0.00050136,120]
[331519938,1720446618973,-500.0,0.00050136,120]
[331519939,1720446619089,-500.0,0.00050136,120]
[331519940,1720446619207,-500.0,0.00050136,120]
[331519941,1720446619328,-500.0,0.00050136,120]
[331519942,1720446619452,-1163.26,0.00050136,120]
[331519943,1720446619574,-500.0,0.00050136,120]
[331519944,1720446619692,-406.14,0.00050136,120]
[331519945,1720446619805,-500.0,0.00050136,120]
[331519946,1720446619922,-966.97,0.00050136,120]
[331519947,1720446620037,-524.69,0.00050136,120]
[331519948,1720446620156,-500.0,0.00050136,120]
[331519949,1720446620268,-437.7,0.00050136,120]
[331519950,1720446620377,-1435.54,0.00050136,120]
[331519951,1720446620487,-982.43,0.00050136,120]
[331519952,1720446620597,-500.0,0.00050136,120]
[331519953,1720446620701,-500.0,0.00050136,120]
[331519954,1720446620809,-500.0,0.00050136,120]
[331519955,1720446620911,-505.77524029,0.00050136,120]
[331519956,1720446621020,-500.0,0.00050136,120]
[331519957,1720446621128,-2601.42,0.00050136,120]
[331519958,1720446621235,-500.0,0.00050136,120]
[331519959,1720446621341,-500.0,0.00050136,120]
[331519960,1720446621446,-405.75,0.00050136,120]
[331519961,1720446621550,-500.0,0.00050136,120]
[331519962,1720446621656,-500.0,0.00050136,120]
[331519963,1720446621761,-500.0,0.00050136,120]
[331519964,1720446621868,-576.67,0.00050136,120]
[331519965,1720446621979,-656.98,0.00050136,120]
[331519966,1720446622089,-875.42,0.00050136,120]
[331519967,1720446622197,-490.98494503,0.00050136,120]
[331519968,1720446622308,-500.0,0.00050136,120]
[331519969,1720446622420,-500.0,0.00050136,120]
[331519970,1720446622526,-500.0,0.00050136,120]
[331519971,1720446622638,-503.49929852,0.00050136,120]
[331519972,1720446622744,-336.86666795,0.00050136,120]
[331519973,1720446622847,-500.0,0.00050136,120]
[331519974,1720446622952,-500.0,0.00050136,120]
[331519975,1720446623058,-500.0,0.00050136,120]
[331519976,1720446623169,-500.0,0.00050136,120]
[331519977,1720446623273,-507.90985974,0.00050136,120]
[331519978,1720446623397,-601.48,0.00050136,120]
[331519979,1720446623530,-927.61,0.00050136,120]
[331519980,1720446623658,-500.0,0.00050136,120]
[331519981,1720446623778,-500.0,0.00050136,120]
[331519982,1720446623897,-663.11,0.00050136,120]
[331519983,1720446624018,-500.0,0.00050136,120]
[331519984,1720446624145,-500.0,0.00050136,120]
[331519985,1720446624260,-403.78,0.00050136,120]
[331519986,1720446624367,-995.13,0.00050136,120]
[331519987,1720446624480,-500.0,0.00050136,120]
[331519988,1720446624591,-500.0,0.00050136,120]
[331519989,1720446624708,-503.89,0.00050136,120]
[331519990,1720446624822,-500.0,0.00050136,120]
[331519991,1720446624937,-500.0,0.00050136,120]
[331519992,1720446625050,-500.0,0.00050136,120]
[331519993,1720446625166,-2052.66,0.00050136,120]
[331519994,1720446625268,-500.0,0.00050136,120]
[331519995,1720446625369,-500.0,0.00050136,120]
[331519996,1720446625478,-500.0,0.00050136,120]
[331519997,1720446625584,-241.22,0.00050136,120]
[331519998,1720446625691,-500.0,0.00050136,120]
[331519999,1720446625799,-793.83,0.00050136,120]
[331520000,1720446625909,-500.0,0.00050136,120]
[331520001,1720446626020,-500.0,0.00050136,120]
[331520002,1720446626133,-500.0,0.00050136,120]
[331520003,1720446626243,-500.0,0.00050136,120]
[331520004,1720446626348,-500.0,0.00050136,120]
[331520005,1720446626450,-500.0,0.00050136,120]
[331520006,1720446626555,-161.85,0.00050136,120]
[331520007,1720446626662,-500.0,0.00050136,120]
[331520008,1720446626768,-500.0,0.00050136,120]
[331520009,1720446626887,-266.67061856,0.00050136,120]
[331520010,1720446626994,-680.97,0.00050136,120]
[331520011,1720446627102,-480.59,0.00050136,120]
[331520012,1720446627207,-500.0,0.00050136,120]
[331520013,1720446627310,-502.04041279,0.00050136,120]
[331520014,1720446627415,-500.0,0.00050136,120]
[331520015,1720446627524,-500.0,0.00050136,120]
[331520016,1720446627637,-500.0,0.00050136,120]
[331520017,1720446627746,-500.0,0.00050136,120]
[331520018,1720446627847,-500.0,0.00050136,120]
[331520019,1720446627945,-576.64,0.00050136,120]
[331520020,1720446628046,-500.0,0.00050136,120]
[331520021,1720446628149,-500.0,0.00050136,120]
[331520022,1720446628249,-500.0,0.00050136,120]
[331520023,1720446628351,-500.0,0.00050136,120]
[331520024,1720446628462,-500.0,0.00050136,120]
[331520025,1720446628578,-844.3,0.00050136,120]
[331520026,1720446628693,-500.0,0.00050136,120]
[331520027,1720446628797,-500.0,0.00050136,120]
[331520028,1720446628900,-500.0,0.00050136,120]
[331520029,1720446629006,-626.46,0.00050136,120]
[331520030,1720446629110,-500.0,0.00050136,120]
[331520031,1720446629212,-858.72,0.00050136,120]
[331520032,1720446629317,-606.39,0.00050136,120]
[331520033,1720446629425,-500.0,0.00050136,120]
[331520034,1720446629535,-500.0,0.00050136,120]
[331520035,1720446629649,-608.68,0.00050136,120]
[331520036,1720446629756,-586.51,0.00050136,120]
[331520037,1720446629863,-500.0,0.00050136,120]
[331520038,1720446629972,-500.0,0.00050136,120]
[331520039,1720446630087,-500.0,0.00050136,120]
[331520040,1720446630334,-500.0,0.00050136,120]
[331520041,1720446630439,-500.0,0.00050136,120]
[331520042,1720446630542,-500.0,0.00050136,120]
[331520043,1720446630646,-500.0,0.00050136,120]
[331520044,1720446630750,-500.0,0.00050136,120]
[331520045,1720446630853,-500.0,0.00050136,120]
[331520046,1720446630953,-184.15,0.00050136,120]
[331520047,1720446631056,-500.0,0.00050136,120]
[331520048,1720446631157,-233.81,0.00050136,120]
[331520049,1720446631261,-459.72470123,0.00050136,120]
[331520050,1720446631364,-698.26,0.00050136,120]
[331520051,1720446631470,-497.00862366,0.00050136,120]
[331520052,1720446631571,-153.08,0.00050136,120]
[331520065,1720446631677,-500.0,0.00050136,120]
[331520066,1720446631775,-580.79,0.00050136,120]
[331520067,1720446631885,-510.69254322,0.00050136,120]
[331520072,1720446631999,-1752.42,0.00050136,120]
[331520073,1720446632110,-216.81244852,0.00050136,120]
[331520074,1720446632217,-500.0,0.00050136,120]
[331520075,1720446632309,-500.0,0.00050136,120]
[331520076,1720446632405,-500.0,0.00050136,120]
[331520077,1720446632507,-500.0,0.00050136,120]
[331520085,1720446632607,-1395.37,0.00050136,120]
[331520097,1720446632705,-500.0,0.00050136,120]
[331520098,1720446632803,-500.0,0.00050136,120]
[331520099,1720446632900,-500.0,0.00050136,120]
[331520100,1720446632995,-284.57934665,0.00050136,120]
[331520101,1720446633091,-500.0,0.00050136,120]
[331520102,1720446633189,-789.75,0.00050136,120]
[331520103,1720446633289,-500.0,0.00050136,120]
[331520104,1720446633399,-500.0,0.00050136,120]
[331520105,1720446633514,-500.0,0.00050136,120]
[331520106,1720446633627,-500.0,0.00050136,120]
[331520107,1720446633736,-500.0,0.00050136,120]
[331520108,1720446633842,-500.0,0.00050136,120]
[331520109,1720446633942,-500.0,0.00050136,120]
[331520110,1720446634046,-618.35,0.00050136,120]
[331520111,1720446634148,-500.0,0.00050136,120]
[331520112,1720446634251,-500.0,0.00050136,120]
[331520113,1720446634352,-500.0,0.00050136,120]
[331520114,1720446634452,-506.52,0.00050136,120]
[331520115,1720446634554,-768.09,0.00050136,120]
[331520116,1720446634655,-500.0,0.00050136,120]
[331520117,1720446634755,-610.82,0.00050136,120]
[331520118,1720446634854,-500.0,0.00050136,120]
[331520119,1720446634959,-621.72,0.00050136,120]
[331520120,1720446635063,-266.13,0.00050136,120]
[331520121,1720446635165,-500.0,0.00050136,120]
[331520122,1720446635268,-500.0,0.00050136,120]
[331520123,1720446635368,-500.0,0.00050136,120]
[331520124,1720446635476,-1216.49,0.00050136,120]
[331520125,1720446635582,-3725.93,0.00050136,120]
[331520126,1720446635684,-935.49,0.00050136,120]
[331520127,1720446635784,-675.31,0.00050136,120]
[331520128,1720446635884,-2876.66,0.00050136,120]
[331520129,1720446635987,-586.12,0.00050136,120]
[331520130,1720446636086,-500.0,0.00050136,120]
[331520131,1720446636186,-1521.41,0.00050136,120]
[331520132,1720446636288,-500.0,0.00050136,120]
[331520133,1720446636390,-500.0,0.00050136,120]
[331520134,1720446636492,-8657.52,0.00050136,120]
[331520135,1720446636594,-156.43409628,0.0005035,60]
[331520136,1720446636696,-500.0,0.0005041,120]
[331520137,1720446636796,-241.31058721,0.0005041,120]
[331520138,1720446636898,-500.0,0.0005041,120]
[331520139,1720446637014,-704.82,0.0005041,120]
[331520140,1720446637129,-500.0,0.0005041,120]
[331520141,1720446637255,-500.0,0.0005041,120]
[331520142,1720446637371,-194.78003255,0.0005041,120]
[331520143,1720446637494,-500.0,0.0005041,120]
[331520146,1720446637609,-1163.26,0.0005041,120]
[331520147,1720446637721,-333.26,0.0005041,120]
[331520148,1720446637835,-500.0,0.0005041,120]
[331520149,1720446637941,-966.97,0.0005041,120]
[331520150,1720446638042,-500.0,0.0005041,120]
[331520151,1720446638153,-1435.54,0.0005041,120]
[331520152,1720446638251,-982.43,0.0005041,120]
[331520153,1720446638353,-500.0,0.0005041,120]
[331520154,1720446638467,-500.0,0.0005041,120]
[331520155,1720446638580,-500.0,0.0005041,120]
[331520156,1720446638692,-500.0,0.0005041,120]
[331520157,1720446638801,-2601.42,0.0005041,120]
[331520158,1720446638909,-500.0,0.0005041,120]
[331520159,1720446639018,-500.0,0.0005041,120]
[331520160,1720446639131,-500.0,0.0005041,120]
[331520161,1720446639250,-500.0,0.0005041,120]
[331520162,1720446639367,-451.13,0.0005041,120]
[331520163,1720446639488,-576.67,0.0005041,120]
[331520165,1720446639607,-656.98,0.0005041,120]
[331520166,1720446639723,-875.42,0.0005041,120]
[331520167,1720446639842,-500.0,0.0005041,120]
[331520168,1720446639967,-500.0,0.0005041,120]
[331520169,1720446640085,-507.70362585,0.0005041,120]
[331520170,1720446640205,-500.0,0.0005041,120]
[331520172,1720446640321,-500.0,0.0005041,120]
[331520184,1720446640431,-500.0,0.0005041,120]
[331520197,1720446640540,-506.99935468,0.0005041,120]
[331520202,1720446640658,-601.48,0.0005041,120]
[331520216,1720446640776,-927.61,0.0005041,120]
[331520228,1720446640884,-500.0,0.0005041,120]
[331520230,1720446641004,-500.0,0.0005041,120]
[331520231,1720446641121,-663.11,0.0005041,120]
[331520232,1720446641236,-500.0,0.0005041,120]
[331520233,1720446641485,-500.0,0.0005041,120]
[331520234,1720446641602,-995.13,0.0005041,120]
[331520235,1720446641719,-390.28,0.0005041,120]
[331520236,1720446641825,-500.0,0.0005041,120]
[331520237,1720446641933,-503.89,0.0005041,120]
[331520238,1720446642051,-500.0,0.0005041,120]
[331520239,1720446642176,-500.0,0.0005041,120]
[331520240,1720446642290,-500.0,0.0005041,120]
[331520241,1720446642400,-2052.66,0.0005041,120]
[331520243,1720446642517,-500.0,0.0005041,120]
[331520248,1720446642633,-500.0,0.0005041,120]
[331520258,1720446642753,-500.0,0.0005041,120]
[331520265,1720446642868,-500.0,0.0005041,120]
[331520280,1720446642981,-793.83,0.0005041,120]
[331520286,1720446643084,-500.0,0.0005041,120]
[331520287,1720446643188,-213.99117989,0.0005041,120]
[331520288,1720446643290,-500.0,0.0005041,120]
[331520289,1720446643403,-500.0,0.0005041,120]
[331520290,1720446643519,-500.0,0.0005041,120]
[331520296,1720446643633,-334.50313487,0.0005041,120]
[331520298,1720446643743,-500.0,0.0005041,120]
[331520299,1720446643842,-378.31,0.0005041,120]
[331520300,1720446643941,-680.97,0.0005041,120]
[331520301,1720446644040,-309.55,0.0005041,120]
[331520302,1720446644143,-500.0,0.0005041,120]
[331520303,1720446644251,-431.14,0.0005041,120]
[331520304,1720446644358,-500.0,0.0005041,120]
[331520305,1720446644464,-500.0,0.0005041,120]
[331520306,1720446644566,-461.04,0.0005041,120]
[331520307,1720446644674,-576.64,0.0005041,120]
[331520308,1720446644775,-500.0,0.0005041,120]
[331520309,1720446644874,-500.0,0.0005041,120]
[331520310,1720446644973,-500.0,0.0005041,120]
[331520311,1720446645077,-500.0,0.0005041,120]
[331520312,1720446645183,-500.0,0.0005041,120]
[331520313,1720446645286,-844.3,0.0005041,120]
[331520314,1720446645401,-500.0,0.0005041,120]
[331520315,1720446645510,-500.0,0.0005041,120]
[331520317,1720446645616,-626.46,0.0005041,120]
[331520321,1720446645725,-500.0,0.0005041,120]
[331520328,1720446645830,-500.0,0.0005041,120]
[331520329,1720446645934,-858.72,0.0005041,120]
[331520330,1720446646039,-606.39,0.0005041,120]
[331520332,1720446646147,-500.0,0.0005041,120]
[331520340,1720446646255,-500.0,0.0005041,120]
[331520341,1720446646360,-608.68,0.0005041,120]
[331520342,1720446646462,-586.51,0.0005041,120]
[331520353,1720446646567,-500.0,0.0005041,120]
[331520355,1720446646672,-500.0,0.0005041,120]
[331520356,1720446646775,-500.0,0.0005041,120]
[331520357,1720446646873,-500.0,0.0005041,120]
[331520358,1720446646975,-500.0,0.0005041,120]
[331520359,1720446647075,-500.0,0.0005041,120]
[331520360,1720446647184,-500.0,0.0005041,120]
[331520361,1720446647290,-500.0,0.0005041,120]